[Event "*** Titled Tuesday 3|2 Blitz"]
[Site "Chess.com"]
[Date "2016.10.04"]
[Round "6"]
[White "Dr-Bassem"]
[Black "petrpalachev"]
[Result "0-1"]
[WhiteElo "2595"]
[BlackElo "2417"]
[TimeControl "180+2"]
[EndTime "12:17:01 PDT"]
[Termination "petrpalachev won on time"]

1. e4 {[%clk 0:03:01.4]} 1... c5 {[%clk 0:03:01]} 2. Nf3 {[%clk 0:03:02.1]} 2...
d6 {[%clk 0:03:02.4]} 3. g3 {[%clk 0:02:59.8]} 3... Nc6 {[%clk 0:02:58.4]} 4.
Bg2 {[%clk 0:02:58.8]} 4... Nf6 {[%clk 0:02:58.8]} 5. d3 {[%clk 0:02:58]} 5...
g6 {[%clk 0:02:59.3]} 6. O-O {[%clk 0:02:59.5]} 6... Bg7 {[%clk 0:03:00.7]} 7.
c3 {[%clk 0:03:00.9]} 7... O-O {[%clk 0:03:01.5]} 8. Re1 {[%clk 0:03:02.2]} 8...
e5 {[%clk 0:03:00.6]} 9. a3 {[%clk 0:03:02.2]} 9... b5 {[%clk 0:02:47.2]} 10. h3
{[%clk 0:02:54.8]} 10... a6 {[%clk 0:02:33.5]} 11. Be3 {[%clk 0:02:54.5]} 11...
Bb7 {[%clk 0:02:28.3]} 12. Nbd2 {[%clk 0:02:54.1]} 12... a5 {[%clk 0:02:27.4]}
13. a4 {[%clk 0:02:54]} 13... b4 {[%clk 0:02:27.5]} 14. Nc4 {[%clk 0:02:52.6]}
14... Ba6 {[%clk 0:02:27.8]} 15. Bg5 {[%clk 0:02:45.1]} 15... h6 {[%clk
0:02:20.8]} 16. Bxf6 {[%clk 0:02:45.6]} 16... Bxf6 {[%clk 0:02:21]} 17. Ne3
{[%clk 0:02:47.1]} 17... Rb8 {[%clk 0:02:16.1]} 18. h4 {[%clk 0:02:44.9]} 18...
h5 {[%clk 0:02:03.9]} 19. Bh3 {[%clk 0:02:40.2]} 19... Re8 {[%clk 0:01:51.7]}
20. Qd2 {[%clk 0:02:37.1]} 20... Ne7 {[%clk 0:01:49.8]} 21. c4 {[%clk
0:02:23.6]} 21... Bc8 {[%clk 0:01:43.6]} 22. Bxc8 {[%clk 0:02:22.3]} 22... Qxc8
{[%clk 0:01:45.5]} 23. Kg2 {[%clk 0:02:23.2]} 23... Bg7 {[%clk 0:01:40.9]} 24.
Nd5 {[%clk 0:02:21.1]} 24... Nxd5 {[%clk 0:01:40.7]} 25. cxd5 {[%clk 0:02:21.7]}
25... f6 {[%clk 0:01:30]} 26. Qe2 {[%clk 0:02:06.7]} 26... Bh6 {[%clk
0:01:29.2]} 27. b3 {[%clk 0:02:07.5]} 27... Qd7 {[%clk 0:01:27.3]} 28. Rf1
{[%clk 0:01:59.2]} 28... Rf8 {[%clk 0:01:27.9]} 29. Nd2 {[%clk 0:01:47.2]} 29...
Bxd2 {[%clk 0:01:27.9]} 30. Qxd2 {[%clk 0:01:49.1]} 30... Rbe8 {[%clk
0:01:07.4]} 31. f4 {[%clk 0:01:44.9]} 31... f5 {[%clk 0:01:08.1]} 32. fxe5
{[%clk 0:01:43.5]} 32... Rxe5 {[%clk 0:01:08]} 33. Rae1 {[%clk 0:01:27.9]} 33...
Kh7 {[%clk 0:00:52.3]} 34. Rf4 {[%clk 0:01:23.2]} 34... Rf7 {[%clk 0:00:35.1]}
35. Ref1 {[%clk 0:01:23.3]} 35... Rfe7 {[%clk 0:00:36.2]} 36. Qc2 {[%clk
0:01:16.7]} 36... Rf7 {[%clk 0:00:34.1]} 37. Kh2 {[%clk 0:01:16.6]} 37... Rfe7
{[%clk 0:00:26.4]} 38. R1f2 {[%clk 0:01:17.1]} 38... Rf7 {[%clk 0:00:27.3]} 39.
Qb1 {[%clk 0:01:09.5]} 39... Kg8 {[%clk 0:00:26]} 40. Qd1 {[%clk 0:01:07.8]}
40... Kh7 {[%clk 0:00:22.4]} 41. Qc2 {[%clk 0:01:05.8]} 41... Kg8 {[%clk
0:00:22.8]} 42. Qc4 {[%clk 0:01:06]} 42... Kh7 {[%clk 0:00:23.1]} 43. Qa6 {[%clk
0:01:06.3]} 43... Qd8 {[%clk 0:00:22.5]} 44. Rc2 {[%clk 0:00:46.3]} 44... Kg7
{[%clk 0:00:21.3]} 45. Rcf2 {[%clk 0:00:32.6]} 45... Kh7 {[%clk 0:00:19.1]} 46.
Qc4 {[%clk 0:00:32.7]} 46... Qd7 {[%clk 0:00:18]} 47. Qa6 {[%clk 0:00:19.3]}
47... Qc7 {[%clk 0:00:17]} 48. Qa8 {[%clk 0:00:18.1]} 48... Kg7 {[%clk
0:00:16.6]} 49. exf5 {[%clk 0:00:11.8]} 49... Rexf5 {[%clk 0:00:16.4]} 50. Rxf5
{[%clk 0:00:12.6]} 50... Rxf5 {[%clk 0:00:17.5]} 51. Re2 {[%clk 0:00:10.9]}
51... Qf7 {[%clk 0:00:14.7]} 52. Qd8 {[%clk 0:00:04.4]} 52... Rf2+ {[%clk
0:00:14.1]} 53. Rxf2 {[%clk 0:00:05.1]} 53... Qxf2+ {[%clk 0:00:16]} 54. Kh3
{[%clk 0:00:06.7]} 54... Qf1+ {[%clk 0:00:17.2]} 55. Kh2 {[%clk 0:00:07.2]}
55... Qf2+ {[%clk 0:00:14.3]} 56. Kh3 {[%clk 0:00:07.6]} 56... Qf5+ {[%clk
0:00:15.2]} 57. Kh2 {[%clk 0:00:08.4]} 57... Qxd5 {[%clk 0:00:15.6]} 58. Qxa5
{[%clk 0:00:07.1]} 58... Qxb3 {[%clk 0:00:13]} 59. Qc7+ {[%clk 0:00:07.3]} 59...
Qf7 {[%clk 0:00:13.5]} 60. Qxd6 {[%clk 0:00:05.9]} 60... Qf2+ {[%clk 0:00:13.8]}
61. Kh3 {[%clk 0:00:06.5]} 61... b3 {[%clk 0:00:11.2]} 62. Qe7+ {[%clk
0:00:05.1]} 62... Qf7 {[%clk 0:00:11.5]} 63. Qxc5 {[%clk 0:00:04.9]} 63... Qf5+
{[%clk 0:00:12.3]} 0-1

[Event "*** Titled Tuesday 3|2 Blitz"]
[Site "Chess.com"]
[Date "2016.10.04"]
[Round "7"]
[White "Kubas1010"]
[Black "Schemato"]
[Result "1-0"]
[WhiteElo "2462"]
[BlackElo "2312"]
[TimeControl "180+2"]
[EndTime "12:19:34 PDT"]
[Termination "Kubas1010 won by resignation"]

1. d4 {[%clk 0:03:01.9]} 1... e6 {[%clk 0:03:00.2]} 2. c4 {[%clk 0:03:01.1]}
2... f5 {[%clk 0:03:01]} 3. Nc3 {[%clk 0:02:56.8]} 3... Nf6 {[%clk 0:03:02]} 4.
Nf3 {[%clk 0:02:54.8]} 4... Bb4 {[%clk 0:03:02.4]} 5. g3 {[%clk 0:02:53.9]} 5...
b6 {[%clk 0:03:03.1]} 6. Bg2 {[%clk 0:02:55.1]} 6... Bb7 {[%clk 0:03:04.4]} 7.
O-O {[%clk 0:02:56]} 7... Bxc3 {[%clk 0:03:05.3]} 8. bxc3 {[%clk 0:02:56.9]}
8... O-O {[%clk 0:03:06.1]} 9. d5 {[%clk 0:02:47.2]} 9... Qe7 {[%clk 0:02:58.4]}
10. Nd4 {[%clk 0:02:45.4]} 10... g6 {[%clk 0:02:34.8]} 11. d6 {[%clk 0:02:42.6]}
1-0

[Event "*** Titled Tuesday 3|2 Blitz"]
[Site "Chess.com"]
[Date "2016.10.04"]
[Round "7"]
[White "ilya261991"]
[Black "jncool68"]
[Result "0-1"]
[WhiteElo "2473"]
[BlackElo "2482"]
[TimeControl "180+2"]
[EndTime "12:22:33 PDT"]
[Termination "jncool68 won by resignation"]

1. e4 {[%clk 0:03:02]} 1... c5 {[%clk 0:03:00.5]} 2. Nf3 {[%clk 0:03:02.8]} 2...
d6 {[%clk 0:03:01.7]} 3. Bb5+ {[%clk 0:03:02.5]} 3... Nc6 {[%clk 0:03:01.8]} 4.
O-O {[%clk 0:02:58.7]} 4... Bd7 {[%clk 0:03:02.7]} 5. Re1 {[%clk 0:02:58.2]}
5... Nf6 {[%clk 0:03:03.7]} 6. c3 {[%clk 0:02:58]} 6... a6 {[%clk 0:03:04.1]} 7.
Bf1 {[%clk 0:02:58.5]} 7... Bg4 {[%clk 0:03:03.3]} 8. h3 {[%clk 0:02:58.7]} 8...
Bxf3 {[%clk 0:03:04.2]} 9. Qxf3 {[%clk 0:02:59]} 9... g6 {[%clk 0:03:05.5]} 10.
d3 {[%clk 0:02:59.7]} 10... Bg7 {[%clk 0:03:06.8]} 11. a4 {[%clk 0:02:58.5]}
11... O-O {[%clk 0:03:07.3]} 12. Na3 {[%clk 0:02:59.7]} 12... Nd7 {[%clk
0:03:07.6]} 13. g4 {[%clk 0:02:55.9]} 13... b5 {[%clk 0:03:08.3]} 14. Nc2 {[%clk
0:02:53.7]} 14... b4 {[%clk 0:03:07.8]} 15. Bd2 {[%clk 0:02:53.6]} 15... bxc3
{[%clk 0:03:07.9]} 16. bxc3 {[%clk 0:02:54.5]} 16... Rb8 {[%clk 0:03:07.6]} 17.
Ne3 {[%clk 0:02:48.6]} 17... e6 {[%clk 0:03:00.7]} 18. Reb1 {[%clk 0:02:47.9]}
18... Qc7 {[%clk 0:02:55.5]} 19. Qd1 {[%clk 0:02:46.1]} 19... Rxb1 {[%clk
0:02:49.9]} 20. Rxb1 {[%clk 0:02:46.7]} 20... Rb8 {[%clk 0:02:50.6]} 21. f4
{[%clk 0:02:36.5]} 21... Na5 {[%clk 0:02:51.3]} 22. Kg2 {[%clk 0:02:01]} 22...
Rxb1 {[%clk 0:02:45.7]} 23. Qxb1 {[%clk 0:02:01]} 23... Qb6 {[%clk 0:02:47.2]}
24. Qc2 {[%clk 0:01:57.4]} 24... Qb3 {[%clk 0:02:45.6]} 25. d4 {[%clk
0:01:49.5]} 25... cxd4 {[%clk 0:02:42]} 26. cxd4 {[%clk 0:01:50.6]} 26... Bxd4
{[%clk 0:02:29.2]} 27. Bxa5 {[%clk 0:01:48.5]} 27... Qxe3 {[%clk 0:02:24.7]} 28.
Bxa6 {[%clk 0:01:41.2]} 28... Nc5 {[%clk 0:02:06.6]} 29. e5 {[%clk 0:01:34.1]}
29... dxe5 {[%clk 0:02:00.3]} 30. fxe5 {[%clk 0:01:36]} 30... Nxa6 {[%clk
0:01:54.2]} 0-1

[Event "*** Titled Tuesday 3|2 Blitz"]
[Site "Chess.com"]
[Date "2016.10.04"]
[Round "7"]
[White "ulises2013"]
[Black "Frolyanov_D"]
[Result "1/2-1/2"]
[WhiteElo "2320"]
[BlackElo "2406"]
[TimeControl "180+2"]
[EndTime "12:22:50 PDT"]
[Termination "Game drawn by repetition"]

1. e4 {[%clk 0:03:01.9]} 1... e5 {[%clk 0:03:00.1]} 2. Nf3 {[%clk 0:03:02.8]}
2... Nf6 {[%clk 0:02:56.2]} 3. Nxe5 {[%clk 0:03:03.2]} 3... d6 {[%clk
0:02:57.2]} 4. Nf3 {[%clk 0:03:04]} 4... Nxe4 {[%clk 0:02:58.3]} 5. Bd3 {[%clk
0:03:05.3]} 5... d5 {[%clk 0:02:58.4]} 6. O-O {[%clk 0:03:05.5]} 6... Nc5 {[%clk
0:02:49.6]} 7. Re1+ {[%clk 0:03:05]} 7... Be7 {[%clk 0:02:50.4]} 8. Bf1 {[%clk
0:03:06.3]} 8... O-O {[%clk 0:02:49.5]} 9. d4 {[%clk 0:03:03.4]} 9... Ne4 {[%clk
0:02:50.2]} 10. Nbd2 {[%clk 0:03:04.7]} 10... Bf5 {[%clk 0:02:49.3]} 11. Bd3
{[%clk 0:03:03.6]} 11... Nxd2 {[%clk 0:02:46.1]} 12. Bxf5 {[%clk 0:02:53.6]}
12... Nxf3+ {[%clk 0:02:46.6]} 13. Qxf3 {[%clk 0:02:55.5]} 13... Nc6 {[%clk
0:02:42.5]} 14. c3 {[%clk 0:02:55.8]} 14... Bf6 {[%clk 0:02:43.4]} 15. Bf4
{[%clk 0:02:54.8]} 15... Ne7 {[%clk 0:02:43]} 16. Bc2 {[%clk 0:02:48.8]} 16...
Ng6 {[%clk 0:02:43.4]} 17. Bg3 {[%clk 0:02:47.5]} 17... c6 {[%clk 0:02:43.2]}
18. Re2 {[%clk 0:02:47.4]} 18... Re8 {[%clk 0:02:41.7]} 19. Rae1 {[%clk
0:02:47.6]} 19... Qd7 {[%clk 0:02:42.4]} 20. Bf5 {[%clk 0:02:47.1]} 20... Rxe2
{[%clk 0:02:36.7]} 21. Rxe2 {[%clk 0:02:45.4]} 21... Qd8 {[%clk 0:02:36.7]} 22.
a3 {[%clk 0:02:36.4]} 22... Nh4 {[%clk 0:02:34.4]} 23. Bxh4 {[%clk 0:02:36.7]}
23... Bxh4 {[%clk 0:02:36.3]} 24. g3 {[%clk 0:02:26.6]} 24... Bf6 {[%clk
0:02:36.1]} 25. Bd3 {[%clk 0:02:25.5]} 25... g6 {[%clk 0:02:34.1]} 26. Kg2
{[%clk 0:02:22.7]} 26... Kg7 {[%clk 0:02:34.7]} 27. Qe3 {[%clk 0:02:14.4]} 27...
Qd6 {[%clk 0:02:32.1]} 28. Kf3 {[%clk 0:02:11.2]} 28... a5 {[%clk 0:02:31.2]}
29. Qf4 {[%clk 0:02:09.6]} 29... Qxf4+ {[%clk 0:02:21.1]} 30. Kxf4 {[%clk
0:02:10.9]} 30... a4 {[%clk 0:02:20.3]} 31. Ke3 {[%clk 0:02:03.2]} 31... b5
{[%clk 0:02:18.5]} 32. f4 {[%clk 0:02:01.7]} 32... Be7 {[%clk 0:02:10.5]} 33.
Kd2 {[%clk 0:01:59.6]} 33... Bd6 {[%clk 0:02:11.1]} 34. Re1 {[%clk 0:01:51.9]}
34... h5 {[%clk 0:02:11.2]} 35. h4 {[%clk 0:01:49.8]} 35... Kf6 {[%clk
0:02:10.5]} 36. Kc2 {[%clk 0:01:41.3]} 36... Kg7 {[%clk 0:02:10.8]} 37. Kd2
{[%clk 0:01:42]} 37... Kf6 {[%clk 0:02:11.8]} 38. Kc2 {[%clk 0:01:43]} 38... Kg7
{[%clk 0:02:12.9]} 39. Kd2 {[%clk 0:01:44.1]} 1/2-1/2

[Event "*** Titled Tuesday 3|2 Blitz"]
[Site "Chess.com"]
[Date "2016.10.04"]
[Round "7"]
[White "johnathan113"]
[Black "brightthunder"]
[Result "1-0"]
[WhiteElo "2334"]
[BlackElo "2365"]
[TimeControl "180+2"]
[EndTime "12:22:52 PDT"]
[Termination "johnathan113 won by resignation"]

1. d4 {[%clk 0:03:02]} 1... Nf6 {[%clk 0:03:00.3]} 2. Nc3 {[%clk 0:03:01.5]}
2... d5 {[%clk 0:02:57.4]} 3. Bf4 {[%clk 0:03:02.5]} 3... c6 {[%clk 0:02:44.4]}
4. Qd2 {[%clk 0:03:03.3]} 4... Bf5 {[%clk 0:02:44.7]} 5. f3 {[%clk 0:03:04.4]}
5... Bg6 {[%clk 0:02:42]} 6. g4 {[%clk 0:03:05.2]} 6... h5 {[%clk 0:02:39.5]} 7.
g5 {[%clk 0:03:06.3]} 7... Nfd7 {[%clk 0:02:39.4]} 8. e4 {[%clk 0:02:57.1]} 8...
e6 {[%clk 0:02:40.1]} 9. O-O-O {[%clk 0:02:56.8]} 9... Be7 {[%clk 0:02:11.7]}
10. Bd3 {[%clk 0:02:55]} 10... Nf8 {[%clk 0:01:59.4]} 11. Nge2 {[%clk
0:02:51.7]} 11... Nbd7 {[%clk 0:01:57.9]} 12. h4 {[%clk 0:02:50.9]} 12... a6
{[%clk 0:01:53.6]} 13. Bh2 {[%clk 0:02:48.9]} 13... Qa5 {[%clk 0:01:51.2]} 14.
Kb1 {[%clk 0:02:46.6]} 14... Nb6 {[%clk 0:01:36.9]} 15. a3 {[%clk 0:02:04.2]}
15... Nc4 {[%clk 0:01:29.3]} 16. Bxc4 {[%clk 0:02:04.5]} 16... dxc4 {[%clk
0:01:31.2]} 17. d5 {[%clk 0:01:57.1]} 17... cxd5 {[%clk 0:00:34.8]} 18. Nxd5
{[%clk 0:01:58]} 18... Qxd2 {[%clk 0:00:30.8]} 19. Nc7+ {[%clk 0:01:58.9]} 19...
Kd7 {[%clk 0:00:29.9]} 20. Rxd2+ {[%clk 0:02:00.3]} 20... Kc6 {[%clk 0:00:30.1]}
21. Nxa8 {[%clk 0:02:00.7]} 1-0

[Event "*** Titled Tuesday 3|2 Blitz"]
[Site "Chess.com"]
[Date "2016.10.04"]
[Round "7"]
[White "mwpchess"]
[Black "Spas_Kozhuharov"]
[Result "1-0"]
[WhiteElo "2471"]
[BlackElo "2473"]
[TimeControl "180+2"]
[EndTime "12:23:40 PDT"]
[Termination "mwpchess won by resignation"]

1. e4 {[%clk 0:03:02]} 1... c6 {[%clk 0:03:00.4]} 2. d4 {[%clk 0:03:02.6]} 2...
d5 {[%clk 0:03:02.3]} 3. e5 {[%clk 0:03:03.5]} 3... c5 {[%clk 0:03:03.3]} 4.
dxc5 {[%clk 0:03:02.3]} 4... e6 {[%clk 0:03:04.3]} 5. a3 {[%clk 0:02:59.6]} 5...
Nc6 {[%clk 0:03:04]} 6. Nf3 {[%clk 0:02:59.5]} 6... Bxc5 {[%clk 0:03:03.4]} 7.
b4 {[%clk 0:03:00.6]} 7... Bb6 {[%clk 0:03:04]} 8. Bb2 {[%clk 0:03:01.2]} 8...
f6 {[%clk 0:03:04.9]} 9. Bd3 {[%clk 0:02:50.2]} 9... fxe5 {[%clk 0:03:02.8]} 10.
b5 {[%clk 0:02:48.2]} 10... Nd4 {[%clk 0:02:55.4]} 11. Nxd4 {[%clk 0:02:45.3]}
11... Bxd4 {[%clk 0:02:53.4]} 12. Bxd4 {[%clk 0:02:40.3]} 12... exd4 {[%clk
0:02:54.2]} 13. Qh5+ {[%clk 0:02:39.5]} 13... Kf8 {[%clk 0:02:51.9]} 14. O-O
{[%clk 0:02:27.5]} 14... Qd6 {[%clk 0:02:49.4]} 15. Re1 {[%clk 0:02:16.3]} 15...
Nf6 {[%clk 0:02:49.4]} 16. Qh4 {[%clk 0:02:04.9]} 16... e5 {[%clk 0:02:49.7]}
17. Qg3 {[%clk 0:02:04.3]} 17... Kf7 {[%clk 0:02:37.6]} 18. Qxe5 {[%clk
0:01:59.3]} 18... Qxe5 {[%clk 0:02:37.9]} 19. Rxe5 {[%clk 0:01:59.7]} 19... Bd7
{[%clk 0:02:36]} 20. Nd2 {[%clk 0:01:56.8]} 20... Rhe8 {[%clk 0:02:36.2]} 21.
Rae1 {[%clk 0:01:51.8]} 21... Rxe5 {[%clk 0:02:36.5]} 22. Rxe5 {[%clk
0:01:52.2]} 22... Rc8 {[%clk 0:02:36.9]} 23. Nb3 {[%clk 0:01:39.9]} 23... Rc3
{[%clk 0:02:27.6]} 24. f3 {[%clk 0:01:39.2]} 24... a6 {[%clk 0:01:59.7]} 25. a4
{[%clk 0:01:38.2]} 25... axb5 {[%clk 0:01:58.7]} 26. axb5 {[%clk 0:01:38.6]}
26... b6 {[%clk 0:01:43.5]} 27. Nxd4 {[%clk 0:01:38.3]} 27... h6 {[%clk
0:01:41.2]} 28. g4 {[%clk 0:01:35.7]} 28... g5 {[%clk 0:01:38.2]} 29. h3 {[%clk
0:01:28.8]} 29... Rc5 {[%clk 0:01:36.4]} 30. Kf2 {[%clk 0:01:27.9]} 30... Kf8
{[%clk 0:01:35.1]} 31. Kg3 {[%clk 0:01:27.8]} 31... Kf7 {[%clk 0:01:35.8]} 32.
h4 {[%clk 0:01:25.9]} 32... gxh4+ {[%clk 0:01:35.3]} 33. Kxh4 {[%clk 0:01:26.7]}
33... Be8 {[%clk 0:01:34.6]} 34. Nf5 {[%clk 0:01:21]} 34... Bxb5 {[%clk
0:01:31.9]} 35. Nd6+ {[%clk 0:01:16.2]} 1-0

[Event "*** Titled Tuesday 3|2 Blitz"]
[Site "Chess.com"]
[Date "2016.10.04"]
[Round "7"]
[White "Rumpel-VK"]
[Black "Mornar1951"]
[Result "0-1"]
[WhiteElo "2461"]
[BlackElo "2586"]
[TimeControl "180+2"]
[EndTime "12:24:05 PDT"]
[Termination "Mornar1951 won on time"]

1. e4 {[%clk 0:03:01.9]} 1... d5 {[%clk 0:03:01.3]} 2. Nc3 {[%clk 0:02:58.7]}
2... Nf6 {[%clk 0:03:02.5]} 3. exd5 {[%clk 0:02:57.6]} 3... Nxd5 {[%clk
0:03:03.4]} 4. g3 {[%clk 0:02:59.1]} 4... Nxc3 {[%clk 0:02:49.7]} 5. bxc3 {[%clk
0:02:59.4]} 5... g6 {[%clk 0:02:50.4]} 6. Bg2 {[%clk 0:03:00.2]} 6... Bg7 {[%clk
0:02:52.1]} 7. Nf3 {[%clk 0:03:01.2]} 7... c5 {[%clk 0:02:52.6]} 8. O-O {[%clk
0:03:02]} 8... Nc6 {[%clk 0:02:53.9]} 9. Ba3 {[%clk 0:02:59.1]} 9... Qa5 {[%clk
0:02:53.2]} 10. Bb2 {[%clk 0:02:50.4]} 10... O-O {[%clk 0:02:53]} 11. Re1 {[%clk
0:02:48.8]} 11... Rd8 {[%clk 0:02:48]} 12. Ng5 {[%clk 0:02:38.7]} 12... c4
{[%clk 0:02:39]} 13. h4 {[%clk 0:02:31.1]} 13... h6 {[%clk 0:02:34.3]} 14. Nf3
{[%clk 0:02:16.1]} 14... Bg4 {[%clk 0:02:32.1]} 15. Qe2 {[%clk 0:02:17.1]} 15...
Ne5 {[%clk 0:02:29.7]} 16. Qe3 {[%clk 0:01:46.6]} 16... Bxf3 {[%clk 0:02:23]}
17. Bxf3 {[%clk 0:01:47.5]} 17... Rxd2 {[%clk 0:02:19.4]} 18. Bxb7 {[%clk
0:01:43.6]} 18... Rad8 {[%clk 0:02:20]} 19. Qe4 {[%clk 0:00:58.7]} 19... Qb6
{[%clk 0:02:09.4]} 20. Re3 {[%clk 0:00:09.2]} 20... Qxb2 {[%clk 0:02:06.2]} 21.
Rf1 {[%clk 0:00:10.7]} 21... Qxc2 {[%clk 0:02:05.9]} 22. Qf4 {[%clk 0:00:09.9]}
22... Qf5 {[%clk 0:02:01.4]} 23. Qxf5 {[%clk 0:00:09.7]} 23... gxf5 {[%clk
0:02:02.1]} 24. Kg2 {[%clk 0:00:10.9]} 24... e6 {[%clk 0:02:02.8]} 25. h5 {[%clk
0:00:10.1]} 25... Ng4 {[%clk 0:02:03.3]} 26. Rf3 {[%clk 0:00:08.8]} 26... R8d3
{[%clk 0:02:03.9]} 27. Ba6 {[%clk 0:00:07.9]} 27... Ne3+ {[%clk 0:02:02.7]} 28.
Rxe3 {[%clk 0:00:06.8]} 28... Rxe3 {[%clk 0:02:03.9]} 29. Bxc4 {[%clk
0:00:07.9]} 29... Rxc3 {[%clk 0:02:05]} 30. Bb3 {[%clk 0:00:08.3]} 30... Bd4
{[%clk 0:02:05.9]} 31. Kh3 {[%clk 0:00:08.7]} 31... Rxf2 {[%clk 0:02:05.9]} 32.
Rc1 {[%clk 0:00:09.5]} 32... Rxc1 {[%clk 0:02:05.8]} 0-1

[Event "*** Titled Tuesday 3|2 Blitz"]
[Site "Chess.com"]
[Date "2016.10.04"]
[Round "7"]
[White "GMOratovsky"]
[Black "pedromartinez91"]
[Result "1-0"]
[WhiteElo "2425"]
[BlackElo "2341"]
[TimeControl "180+2"]
[EndTime "12:24:06 PDT"]
[Termination "GMOratovsky won by resignation"]

1. e4 {[%clk 0:03:02]} 1... c5 {[%clk 0:02:59.7]} 2. Nf3 {[%clk 0:03:02.8]} 2...
Nc6 {[%clk 0:02:58.4]} 3. Bb5 {[%clk 0:03:03.3]} 3... g6 {[%clk 0:02:58.5]} 4.
Bxc6 {[%clk 0:03:03.3]} 4... bxc6 {[%clk 0:02:58.9]} 5. O-O {[%clk 0:03:03.4]}
5... Bg7 {[%clk 0:02:59.2]} 6. Re1 {[%clk 0:03:04.1]} 6... Nh6 {[%clk
0:02:57.7]} 7. c3 {[%clk 0:03:01.9]} 7... O-O {[%clk 0:02:56.7]} 8. d4 {[%clk
0:03:03.1]} 8... cxd4 {[%clk 0:02:57.5]} 9. cxd4 {[%clk 0:03:05]} 9... f6 {[%clk
0:02:56.6]} 10. Nc3 {[%clk 0:03:04.4]} 10... Nf7 {[%clk 0:02:56.7]} 11. h3
{[%clk 0:02:56]} 11... d6 {[%clk 0:02:55.1]} 12. b3 {[%clk 0:02:47.4]} 12... Qa5
{[%clk 0:02:52.9]} 13. Bd2 {[%clk 0:02:46.5]} 13... Qa6 {[%clk 0:02:53.1]} 14.
Rc1 {[%clk 0:02:42.3]} 14... Bd7 {[%clk 0:02:48.3]} 15. Qe2 {[%clk 0:02:29.2]}
15... Qxe2 {[%clk 0:02:45.5]} 16. Rxe2 {[%clk 0:02:31.1]} 16... Rfc8 {[%clk
0:02:34.8]} 17. Be3 {[%clk 0:02:31.4]} 17... Kf8 {[%clk 0:02:34.4]} 18. Rec2
{[%clk 0:02:32.8]} 18... f5 {[%clk 0:02:31.8]} 19. Rd2 {[%clk 0:02:04.3]} 19...
fxe4 {[%clk 0:02:26.3]} 20. Nxe4 {[%clk 0:02:06.2]} 20... h6 {[%clk 0:02:17.6]}
21. Nc3 {[%clk 0:01:55.7]} 21... Ke8 {[%clk 0:01:55.5]} 22. Re1 {[%clk
0:01:50.3]} 22... Kf8 {[%clk 0:01:42.3]} 23. Rde2 {[%clk 0:01:37.2]} 23... c5
{[%clk 0:01:39.1]} 24. Nd5 {[%clk 0:01:35.6]} 24... cxd4 {[%clk 0:01:25.2]} 25.
Bxd4 {[%clk 0:01:34.8]} 25... e5 {[%clk 0:01:26]} 26. Bb2 {[%clk 0:01:23.8]}
26... a5 {[%clk 0:01:23.8]} 27. Nb6 {[%clk 0:01:24.1]} 27... Bb5 {[%clk
0:01:22.2]} 28. Rd2 {[%clk 0:01:19]} 28... Ke7 {[%clk 0:01:11.8]} 29. Nxa8
{[%clk 0:01:18.5]} 29... Rxa8 {[%clk 0:01:12.3]} 30. Ba3 {[%clk 0:01:20]} 30...
Ke6 {[%clk 0:01:11]} 31. Nd4+ {[%clk 0:01:20.3]} 1-0

[Event "*** Titled Tuesday 3|2 Blitz"]
[Site "Chess.com"]
[Date "2016.10.04"]
[Round "7"]
[White "Grootneus"]
[Black "Rating-Schmating"]
[Result "0-1"]
[WhiteElo "1991"]
[BlackElo "2207"]
[TimeControl "180+2"]
[EndTime "12:24:13 PDT"]
[Termination "Rating-Schmating won by resignation"]

1. e4 {[%clk 0:03:01.9]} 1... e6 {[%clk 0:03:00.2]} 2. d4 {[%clk 0:03:02.4]}
2... d5 {[%clk 0:03:01.2]} 3. Nc3 {[%clk 0:03:03]} 3... Bb4 {[%clk 0:03:01.6]}
4. Bd3 {[%clk 0:03:03.5]} 4... dxe4 {[%clk 0:02:59.5]} 5. Bxe4 {[%clk
0:03:05.4]} 5... Nf6 {[%clk 0:03:00.5]} 6. Bf3 {[%clk 0:03:06.6]} 6... c5 {[%clk
0:03:01.5]} 7. Ne2 {[%clk 0:02:42.7]} 7... O-O {[%clk 0:03:00.5]} 8. a3 {[%clk
0:02:35.3]} 8... Bxc3+ {[%clk 0:03:00.3]} 9. bxc3 {[%clk 0:02:33.5]} 9... Re8
{[%clk 0:02:58.2]} 10. O-O {[%clk 0:02:27.4]} 10... Nc6 {[%clk 0:02:57.9]} 11.
Bg5 {[%clk 0:02:22.5]} 11... h6 {[%clk 0:02:57.1]} 12. Bh4 {[%clk 0:02:23.5]}
12... Bd7 {[%clk 0:02:55.7]} 13. Rb1 {[%clk 0:02:15.8]} 13... Rb8 {[%clk
0:02:55.2]} 14. Bg3 {[%clk 0:02:14.8]} 14... e5 {[%clk 0:02:53.5]} 15. Bxc6
{[%clk 0:01:43.3]} 15... Bxc6 {[%clk 0:02:50]} 16. Bxe5 {[%clk 0:01:44.3]} 16...
Rc8 {[%clk 0:02:39.1]} 17. Ng3 {[%clk 0:01:23.5]} 17... Nd5 {[%clk 0:02:36.8]}
18. Re1 {[%clk 0:01:15.6]} 18... Qg5 {[%clk 0:02:32.5]} 19. Ne4 {[%clk
0:01:06.3]} 19... Qg6 {[%clk 0:02:29.6]} 20. Qf3 {[%clk 0:00:51.1]} 20... f5
{[%clk 0:02:22.9]} 21. Nd6 {[%clk 0:00:44.8]} 21... Nxc3 {[%clk 0:02:20.5]} 22.
Qg3 {[%clk 0:00:44.4]} 22... Qxg3 {[%clk 0:02:15.2]} 23. hxg3 {[%clk 0:00:40.2]}
23... Nxb1 {[%clk 0:02:12]} 24. Nxc8 {[%clk 0:00:32.8]} 24... Rxc8 {[%clk
0:02:07.2]} 25. Rxb1 {[%clk 0:00:33.5]} 25... cxd4 {[%clk 0:02:06.4]} 26. Bxd4
{[%clk 0:00:34.8]} 26... b6 {[%clk 0:02:04.2]} 27. c3 {[%clk 0:00:35.6]} 27...
Re8 {[%clk 0:02:03.3]} 28. Kf1 {[%clk 0:00:36.1]} 28... Be4 {[%clk 0:02:01.9]}
29. Rd1 {[%clk 0:00:30.4]} 29... Bc2 {[%clk 0:02:01.1]} 30. Rd2 {[%clk
0:00:28.4]} 30... Bb3 {[%clk 0:01:59.7]} 31. f3 {[%clk 0:00:28.4]} 31... Bc4+
{[%clk 0:01:57.3]} 32. Kf2 {[%clk 0:00:29.5]} 32... Kf7 {[%clk 0:01:57.9]} 33.
Be3 {[%clk 0:00:30.4]} 33... Re7 {[%clk 0:01:57.3]} 34. Rd4 {[%clk 0:00:31.2]}
34... b5 {[%clk 0:01:58.5]} 35. g4 {[%clk 0:00:31.2]} 35... fxg4 {[%clk
0:01:59.2]} 36. Rxg4 {[%clk 0:00:32.4]} 36... Rd7 {[%clk 0:01:57]} 37. Bxa7
{[%clk 0:00:31.9]} 37... Rxa7 {[%clk 0:01:55]} 38. Rf4+ {[%clk 0:00:32.3]} 38...
Kg6 {[%clk 0:01:55.9]} 39. g4 {[%clk 0:00:31.4]} 39... Rxa3 {[%clk 0:01:56.3]}
0-1